bitfinex-derivatives/quotes_ETHF0:USTF0_20250417
["timestamp","ask_amount","ask_price","bid_price","bid_amount"]
[1744901105416,3.17639,1574.4,1574.0,4.96104]
[1744901105622,1.27079,1574.1,1574.0,3.6902]
[1744901105930,1.27087,1574.0,1573.9,6.9947]
[1744901106229,1.27087,1574.0,1573.9,10.6849]
[1744901106721,1.27087,1574.0,1573.7,1.23864]
[1744901106722,1.27102,1573.9,1573.7,1.23864]
[1744901106929,1.27103,1573.8,1573.7,1.23864]
[1744901107320,1.75373086,1573.8,1573.7,1.23864]
[1744901107631,5.48363086,1573.8,1573.7,1.23864]
[1744901108428,5.00093,1573.8,1573.7,1.23864]
[1744901108726,5.48288418,1573.8,1573.7,1.23864]
[1744901109322,1.27128,1573.5,1573.3,9.29067485]
[1744901109516,3.17801,1573.6,1573.2,24.60367035]
[1744901109721,3.17801,1573.6,1573.3,1.27144]
[1744901109933,1.27142,1573.4,1573.3,1.27144]
[1744901110624,1.27144,1573.3,1573.0,3.2078]
[1744901110828,1.27145,1573.3,1573.0,11.9167]
[1744901111029,1.27145,1573.3,1573.1,42.07154]
[1744901111240,1.27145,1573.3,1573.1,42.07157]
[1744901112128,1.27152,1573.2,1573.1,40.8]
[1744901112429,3.1788,1573.2,1572.8,11.53979555]
[1744901112728,4.0092,1573.1,1572.9,1.27176]
[1744901112931,7.2615,1573.3,1573.1,1.27154]
[1744901113125,1.27152,1573.2,1573.0,4.47942]
[1744901113323,1.27152,1573.2,1573.1,3.7809]
[1744901113527,1.27144,1573.3,1573.1,3.7809]
[1744901113829,5.28069,1573.3,1573.1,5.05242]
[1744901114031,4.0092,1573.3,1573.1,3.7809]
[1744901114226,1.27152,1573.2,1573.1,3.7809]
[1744901116634,1.2716,1573.1,1573.0,3.6981]
[1744901116828,1.27168,1573.0,1572.9,4.93966]
[1744901118531,1.27168,1573.0,1572.9,3.6679]
[1744901118739,3.9242,1573.3,1573.0,1.27161]
[1744901118928,1.2716,1573.1,1573.0,1.27161]
[1744901119427,1.2716,1573.1,1572.8,49.0058]
[1744901119627,1.27169,1573.0,1572.9,1.27172]
[1744901119834,1.27166,1573.1,1572.9,1.27172]
[1744901120129,1.27173,1573.0,1572.8,49.0058]
[1744901120330,1.27176,1572.9,1572.8,49.0058]
[1744901120528,1.27176,1572.9,1572.8,8.2058]
[1744901120724,1.27176,1572.9,1572.8,4.998]
[1744901120924,1.27208,1572.5,1572.4,8.16637]
[1744901121135,1.27208,1572.5,1572.4,4.95857]
[1744901121333,8.90757,1572.6,1572.4,9.43853]
[1744901121534,8.90757,1572.6,1572.4,8.16637]
[1744901121733,3.7745,1572.6,1572.5,1.27208]
[1744901122237,1.27195,1572.7,1572.5,1.27208]
[1744901122437,4.97405,1572.7,1572.5,1.27208]
[1744901122640,4.97405,1572.7,1572.4,8.16637]
[1744901122641,3.7021,1572.7,1572.4,9.43847]
[1744901122936,3.7021,1572.7,1572.4,8.16637]
[1744901123134,6.88197,1572.7,1572.4,9.43852]
[1744901123330,1.27206,1572.6,1572.4,9.43852]
[1744901123525,4.97416,1572.6,1572.4,9.43852]
[1744901123925,3.7021,1572.5,1572.4,9.43852]
[1744901124131,3.7021,1572.5,1572.4,4.95857]
[1744901124329,8.7021,1572.5,1572.1,3.18103]
[1744901124538,4.97424,1572.5,1572.1,3.18103]
[1744901124731,1.27204,1572.6,1572.2,9.56936]
[1744901124932,1.2721,1572.5,1572.2,6.38858]
[1744901125131,5.11925,1572.6,1572.4,1.27211]
[1744901125333,3.8472,1572.6,1572.5,1.27208]
[1744901125539,5.1192,1572.6,1572.4,1.2721]
[1744901125839,5.1192,1572.6,1572.5,1.27208]
[1744901126233,1.27213,1572.5,1572.3,1.27219]
[1744901126535,5.11933,1572.5,1572.3,1.27217]
[1744901126732,1.27216,1572.4,1572.3,1.27217]
[1744901126933,5.11936,1572.4,1572.3,1.27217]
[1744901127138,3.8472,1572.4,1572.3,1.27217]
[1744901127340,1.27204,1572.6,1572.2,6.38862]
[1744901127538,1.2721,1572.5,1572.3,1.27217]
[1744901127736,1.2721,1572.5,1572.4,1.27216]
[1744901128041,1.2721,1572.5,1572.3,1.27218]
[1744901128243,7.26199,1572.7,1572.5,1.27206]
[1744901128438,3.8686,1572.6,1572.5,1.27206]
[1744901129536,3.8686,1572.6,1572.4,5.2587]
[1744901129728,1.27208,1572.5,1572.4,3.9866]
[1744901130238,1.27218,1572.4,1572.3,1.27222]
[1744901130438,1.27229,1572.3,1572.1,10.26855]
[1744901130637,1.27233,1572.2,1572.1,5.26858]
[1744901130840,1.2723,1572.3,1572.2,1.27233]
[1744901131239,1.2723,1572.3,1572.1,5.26856]
[1744901131538,1.27233,1572.2,1572.1,5.26856]
[1744901132743,1.27233,1572.2,1572.1,9.26736]
[1744901133632,5.20073,1572.2,1572.1,3.9988]
[1744901133842,10.31703,1572.2,1571.9,3.7932]
[1744901134140,10.31703,1572.2,1571.8,4.48042]
[1744901134141,1.27257,1571.9,1571.8,4.48042]
[1744901134546,7.26232,1572.3,1571.9,3.18124]
[1744901134745,9.961,1572.3,1572.1,1.27234]
[1744901135043,1.27233,1572.2,1572.1,1.27234]
[1744901135243,1.27233,1572.2,1572.1,5.06554]
[1744901136655,1.27233,1572.2,1572.1,3.7932]
[1744901136845,5.32523,1572.2,1572.1,3.7932]
[1744901137743,5.32523,1572.2,1572.1,5.06561]
[1744901138041,5.32523,1572.2,1572.1,3.7932]
[1744901138241,5.32523,1572.2,1572.1,5.06561]
[1744901138437,5.32523,1572.2,1572.1,3.7932]
[1744901138836,5.32523,1572.2,1572.1,5.06561]
[1744901141250,5.32523,1572.2,1572.1,3.7932]
[1744901141651,5.32523,1572.2,1572.1,5.06561]
[1744901143856,5.32523,1572.2,1572.1,3.7932]
[1744901144354,5.32523,1572.2,1572.1,5.06561]
[1744901144549,5.32523,1572.2,1572.1,3.7932]
[1744901144746,5.32523,1572.2,1572.1,5.06561]
[1744901145754,5.32523,1572.2,1572.1,3.7932]
[1744901146956,5.32523,1572.2,1572.1,5.06561]
[1744901147657,5.32523,1572.2,1572.0,10.31562]
[1744901147658,1.27241,1572.1,1572.0,8.40685]
[1744901147850,5.16741,1572.1,1572.0,8.40685]
[1744901148051,5.16741,1572.1,1572.0,12.45425]
[1744901149562,3.895,1572.1,1572.0,12.45425]
[1744901150857,5.16741,1572.1,1572.0,12.45425]
[1744901151260,4.37786436,1572.1,1572.0,12.45425]
[1744901151557,3.895,1572.1,1572.0,12.45425]
[1744901151758,5.16741,1572.1,1572.0,12.45425]
[1744901151963,3.895,1572.1,1572.0,12.45425]
[1744901152257,0.48306254,1572.1,1572.0,12.45425]
[1744901152459,1.27201,1572.6,1572.5,1.27203]
[1744901152657,1.27213,1572.5,1572.4,1.27216]
[1744901152858,1.75521328,1572.5,1572.4,3.6907]
[1744901153058,1.75518173,1572.5,1572.4,3.6907]
[1744901153258,5.10993,1572.5,1572.4,3.6907]
[1744901153959,5.10995,1572.5,1572.3,4.48001]
[1744901154161,1.27215,1572.5,1572.4,1.27216]
[1744901154356,1.27215,1572.5,1572.4,4.96286]
[1744901154557,1.27215,1572.5,1572.4,3.6907]
[1744901154760,21.28309,1572.7,1572.4,3.6907]
[1744901154761,13.1011,1572.7,1572.4,3.6907]
[1744901155063,1.27208,1572.5,1572.4,12.85363]
[1744901155260,1.27208,1572.5,1572.4,12.85366]
[1744901155565,1.27208,1572.5,1572.4,8.81866]
[1744901156161,1.27208,1572.5,1572.4,7.5465]
[1744901156671,1.27216,1572.4,1572.3,3.2078]
[1744901157059,1.27216,1572.4,1572.3,4.48005]
[1744901157271,11.22674,1572.5,1572.4,1.27216]
[1744901157664,11.22674,1572.5,1572.0,3.7356]
[1744901157665,3.18062,1572.3,1572.0,3.7356]
[1744901157860,1.27249,1572.0,1571.9,7.2428]
[1744901158165,6.3888,1572.2,1571.9,1.27255]
[1744901158370,1.27246,1572.1,1572.0,3.8623]
[1744901158568,1.27246,1572.1,1572.0,5.13479]
[1744901159069,5.99,1572.2,1572.1,1.27241]
[1744901159270,5.99,1572.2,1572.1,5.13471]
[1744901159471,7.26233,1572.2,1572.1,8.87031]
[1744901159672,5.99,1572.2,1572.1,8.87031]
[1744901161068,5.99,1572.2,1572.0,4.48025]
[1744901161270,1.27241,1572.1,1572.0,3.2078]
[1744901161570,1.27241,1572.1,1572.0,7.2143]
[1744901161775,1.27257,1571.9,1571.8,48.8182]
[1744901162471,1.27265,1571.8,1571.7,3.2078]
[1744901163476,1.27273,1571.7,1571.6,4.0065]
[1744901163779,1.27281,1571.6,1571.5,40.8]
[1744901163974,1.27278,1571.7,1571.6,1.27281]
[1744901164167,1.26349793,1571.7,1571.6,1.27281]
[1744901164367,5.99,1571.8,1571.5,1.27283]
[1744901164572,1.27281,1571.6,1571.5,1.27283]
[1744901164878,1.27287,1571.6,1571.5,42.07289]
[1744901165167,1.27287,1571.6,1571.5,44.5821]
[1744901165769,1.27289,1571.5,1571.4,11.2356]
[1744901166074,1.27289,1571.5,1571.4,15.0177]
[1744901166273,1.27289,1571.5,1571.4,57.09067]
[1744901166475,1.27289,1571.5,1571.4,55.8177]
[1744901166881,1.27287,1571.6,1571.4,57.09067]
[1744901167071,1.27287,1571.6,1571.5,3.9187]
[1744901167375,1.27289,1571.5,1571.4,44.8388]
[1744901167775,1.27289,1571.5,1571.4,48.7575]
[1744901168180,1.27289,1571.5,1571.4,44.7187]
[1744901168570,1.27289,1571.5,1571.4,3.9187]
[1744901168769,1.27289,1571.5,1571.4,5.19167]
[1744901168971,1.27289,1571.5,1571.4,3.9187]
[1744901170179,1.27297,1571.4,1571.3,1.27304]
[1744901170374,1.27297,1571.4,1571.3,5.01354]
[1744901170575,1.27297,1571.4,1571.3,3.7405]
[1744901170777,1.27297,1571.4,1571.3,5.01356]
[1744901171378,1.27296,1571.5,1571.3,3.7405]
[1744901171676,5.99,1571.6,1571.5,1.27289]
[1744901172179,5.99,1571.6,1571.5,12.71099]
[1744901172774,7.26281,1571.6,1571.5,12.71099]
[1744901173275,5.99,1571.6,1571.5,12.71099]
[1744901173578,7.26281,1571.6,1571.5,12.71099]
[1744901174074,7.26281,1571.6,1571.5,7.6742]
[1744901174273,11.03331,1571.6,1571.5,7.6742]
[1744901174476,1.27297,1571.5,1571.4,1.27297]
[1744901174676,5.04347,1571.5,1571.4,5.04267]
[1744901175075,5.14617,1571.6,1571.4,3.7697]
[1744901175378,1.27287,1571.6,1571.5,5.04259]
[1744901175577,1.27287,1571.6,1571.5,3.7697]
[1744901175778,1.27287,1571.6,1571.5,5.04259]
[1744901175980,1.27287,1571.6,1571.5,3.7697]
[1744901176781,5.18447,1571.6,1571.5,3.7697]
[1744901176981,5.18447,1571.6,1571.5,5.04259]
[1744901177179,5.18447,1571.6,1571.5,3.7697]
[1744901177679,5.18447,1571.6,1571.5,5.04259]
[1744901177879,5.18447,1571.6,1571.5,3.7697]
[1744901178978,1.27289,1571.5,1571.4,3.2078]
[1744901179183,1.27297,1571.4,1571.3,9.14866]
[1744901179684,1.27306,1571.3,1571.2,4.95244]
[1744901180379,5.32356,1571.3,1571.2,4.95244]
[1744901180879,5.32356,1571.3,1571.2,3.6793]
[1744901181683,1.27304,1571.4,1571.2,3.6793]
[1744901181879,1.27289,1571.5,1571.4,1.27293]
[1744901182184,5.32337,1571.6,1571.5,1.27289]
[1744901182489,4.0505,1571.6,1571.5,1.27289]
[1744901182677,4.10931043,1571.7,1571.6,1.27281]
[1744901182879,4.10002836,1571.7,1571.6,4.48061]
[1744901183083,4.10002836,1571.7,1571.6,14.48161]
[1744901183383,2.92752836,1571.7,1571.6,22.15111]
[1744901183583,6.18656145,1571.8,1571.7,1.27273]
[1744901183884,8.17286971,1571.9,1571.8,1.27265]
[1744901184080,7.86173003,1571.9,1571.8,4.48045]
[1744901184383,4.68036014,1571.9,1571.8,13.35165]
[1744901184583,4.68036014,1571.9,1571.8,8.35165]
[1744901184785,4.68036014,1571.9,1571.8,5.14385]
[1744901185387,7.8024,1572.1,1572.0,1.27249]
[1744901185789,9.07481,1572.1,1571.9,5.14571]
[1744901186085,7.8024,1572.1,1571.9,3.8732]
[1744901186287,7.8024,1572.1,1572.0,1.27249]
[1744901188281,14.1988,1572.5,1572.2,1.27233]
[1744901188487,5.23535,1572.3,1572.1,8.96684]
[1744901188788,5.31808,1572.4,1572.2,4.99083]
[1744901188993,9.28118,1572.4,1572.3,3.7185]
[1744901190685,1.27233,1572.2,1572.1,5.24836]
[1744901190891,5.2354,1572.3,1572.1,5.24836]
[1744901191084,1.27241,1572.1,1572.0,8.35904]
[1744901191388,5.23546,1572.2,1572.1,1.27241]
[1744901191886,5.23546,1572.2,1572.0,12.30563]
[1744901192082,3.7911,1572.1,1572.0,12.30563]
[1744901192287,5.99,1572.3,1572.2,1.27233]
[1744901193090,7.26225,1572.3,1572.2,3.9466]
[1744901193386,11.05335,1572.3,1572.2,5.21893]
[1744901193892,9.7811,1572.3,1572.2,5.21893]
[1744901194689,11.05335,1572.3,1572.2,5.21893]
[1744901195093,9.7811,1572.3,1572.2,5.21893]
[1744901195295,5.99,1572.3,1572.2,5.21893]
[1744901195687,3.707,1572.4,1572.3,1.27225]
[1744901195990,1.27214,1572.5,1572.4,1.27216]
[1744901196295,4.97914,1572.5,1572.4,4.47996]
[1744901196995,4.97914,1572.5,1572.4,7.139]
[1744901198096,4.97914,1572.5,1572.4,8.41116]
[1744901198401,4.97914,1572.5,1572.4,7.139]
[1744901198594,4.97914,1572.5,1572.4,4.47996]
[1744901198790,1.27216,1572.4,1572.3,44.0078]
[1744901199099,1.27233,1572.2,1572.1,3.8566]
[1744901199295,4.98881,1572.3,1572.2,1.27233]
[1744901199501,8.98051,1572.3,1572.2,4.48013]
[1744901199898,7.7082,1572.3,1572.2,4.48013]
[1744901200099,8.98045,1572.3,1572.2,3.2078]
[1744901200396,8.98045,1572.3,1572.2,4.48013]
[1744901201400,1.27249,1572.0,1571.9,8.2078]
[1744901201600,3.18103,1572.1,1571.7,4.48048]
[1744901201901,1.27271,1571.8,1571.6,45.793]
[1744901202093,3.7955,1571.7,1571.6,51.10251]
[1744901202390,3.7955,1571.7,1571.6,47.06581]
[1744901202700,3.2078,1572.0,1571.8,1.27258]
[1744901202903,5.06801,1572.0,1571.9,1.27257]
[1744901203194,3.7955,1572.0,1571.9,1.27257]
[1744901203394,5.06799,1572.0,1571.9,1.27257]
[1744901203900,3.7955,1572.0,1571.9,1.27257]
[1744901204204,5.99,1572.2,1571.9,1.27257]
[1744901204205,7.26235,1572.2,1572.0,1.27242]
[1744901204504,5.99,1572.2,1572.1,1.27241]
[1744901204901,7.26233,1572.2,1572.1,1.27241]
[1744901205101,5.99,1572.2,1572.1,1.27241]
[1744901205903,5.99,1572.2,1572.1,4.48021]
[1744901207506,3.9782,1572.3,1572.2,1.27233]
[1744901207796,5.99,1572.5,1572.2,1.27233]
[1744901208001,7.8723,1572.6,1572.3,3.2078]
[1744901208198,5.25042,1572.4,1572.3,3.2078]
[1744901208591,3.9782,1572.4,1572.3,4.48005]
[1744901208993,14.7899,1572.7,1572.3,4.48005]
[1744901208994,5.99,1572.7,1572.6,1.272]
[1744901209191,3.9782,1572.9,1572.8,1.27184]
[1744901209400,3.9782,1572.9,1572.8,4.47964]
[1744901209603,5.24996,1572.9,1572.8,3.2078]
[1744901209803,5.24996,1572.9,1572.8,4.47964]
[1744901210004,5.24996,1572.9,1572.8,3.2078]
[1744901210804,3.9782,1572.9,1572.8,4.47964]
[1744901212707,3.9782,1572.9,1572.8,3.2078]
[1744901212708,5.24996,1572.9,1572.8,3.2078]
[1744901213211,3.9782,1572.9,1572.8,4.47964]
[1744901213708,5.24996,1572.9,1572.8,3.2078]
[1744901214010,3.9782,1572.9,1572.8,4.47964]
[1744901214906,1.23408,1573.0,1572.8,3.2078]
[1744901215109,2.50576,1573.0,1572.9,3.7675]
[1744901215411,2.50576,1573.0,1572.9,5.03926]
[1744901215412,5.03268,1573.0,1572.9,5.03926]
[1744901216410,1.23408,1573.0,1572.9,5.03926]
[1744901217201,1.23408,1573.0,1572.8,8.24618]
[1744901217202,2.50579,1573.0,1572.8,8.24618]
[1744901217407,5.26958,1573.0,1572.9,1.27176]
[1744901217609,5.26958,1573.0,1572.9,3.6758]
[1744901218309,5.26958,1573.0,1572.9,4.94756]
[1744901218511,5.26958,1573.0,1572.9,3.6758]
[1744901218811,6.54126,1573.0,1572.9,3.6758]
[1744901219310,5.26958,1573.0,1572.9,4.94756]
[1744901220409,1.23408,1573.0,1572.9,9.94756]
[1744901220708,4.0697,1573.5,1573.4,1.27136]
[1744901221014,4.0697,1573.5,1573.4,4.47916]
[1744901221707,9.9546,1573.6,1573.4,4.47916]
[1744901221908,13.7811,1573.6,1573.5,3.8193]
[1744901222107,15.05229,1573.6,1573.5,3.8193]
[1744901222320,1.27128,1573.5,1573.4,3.2078]
[1744901222616,5.09778,1573.5,1573.4,3.2078]
[1744901223008,1.2714,1573.4,1573.2,13.28056]
[1744901223210,3.8265,1573.4,1573.3,1.27144]
[1744901223404,3.8265,1573.4,1573.3,5.09074]
[1744901223912,9.9546,1573.6,1573.5,1.27128]
[1744901224410,5.99,1573.8,1573.7,1.27111]
[1744901225119,9.7562,1573.8,1573.7,1.27111]
[1744901225313,5.99,1573.8,1573.7,5.04671]
[1744901225513,8.20929495,1573.9,1573.8,1.27103]
[1744901225718,7.26075,1574.2,1574.0,1.27081]
[1744901225915,3.7662,1574.1,1574.0,1.27081]
[1744901226420,5.03699,1574.1,1574.0,1.27081]
[1744901226619,3.7662,1574.1,1574.0,1.27081]
[1744901227017,5.99,1574.2,1574.1,1.27079]
[1744901227921,9.47990495,1574.4,1574.2,1.27071]
[1744901228216,13.48780495,1574.4,1574.2,1.27071]
[1744901228413,4.0079,1574.3,1574.2,1.27071]
[1744901229117,8.20929495,1574.4,1574.3,1.27063]
[1744901229621,8.20929495,1574.4,1574.3,5.14293]
[1744901229822,12.21719495,1574.4,1574.3,5.14293]
[1744901230117,12.21719495,1574.4,1574.3,10.12593]
[1744901230118,8.20929495,1574.4,1574.3,10.12593]
[1744901230722,8.20929495,1574.4,1574.3,8.8553]
[1744901230723,5.27845,1574.4,1574.3,8.8553]
[1744901230918,4.0079,1574.4,1574.2,3.2078]
[1744901231121,3.7727,1574.3,1574.2,4.47843]
[1744901231318,5.99,1574.6,1574.2,10.36778]
[1744901231518,9.7627,1574.6,1574.5,1.27047]
[1744901231821,3.7727,1574.6,1574.5,1.27047]
[1744901232223,3.7727,1574.6,1574.5,5.25367]
[1744901234616,11.9805,1574.6,1574.3,40.8]
[1744901234821,3.17618,1574.5,1574.2,4.47851]
[1744901235024,1.27063,1574.3,1574.2,3.2078]
[1744901235230,8.0537,1574.4,1574.3,1.27063]
[1744901235430,9.32428,1574.4,1574.2,4.47847]
[1744901235631,1.27063,1574.3,1574.2,4.47847]
[1744901235831,9.32432,1574.4,1574.2,4.47847]
[1744901236138,1.27063,1574.3,1574.2,4.47851]
[1744901236323,1.27063,1574.3,1574.2,3.2078]
[1744901236824,14.0437,1574.4,1574.3,1.27063]
[1744901237019,9.9813,1574.4,1574.3,1.27063]
[1744901237326,9.9813,1574.4,1574.2,4.47845]
[1744901237526,9.9813,1574.4,1574.3,1.27063]
[1744901238227,9.9813,1574.4,1574.3,5.29273]
[1744901238532,1.27063,1574.3,1574.2,3.2078]
[1744901238831,1.27068,1574.3,1574.2,1.2707]
[1744901240332,1.27071,1574.2,1574.1,1.27079]
[1744901240834,3.17699,1574.1,1573.6,0.50993574]
[1744901241035,1.271,1573.9,1573.8,1.27103]
[1744901241431,1.27111,1573.7,1573.6,5.00987]
[1744901241629,1.27111,1573.7,1573.4,6.25233]
[1744901241630,1.27128,1573.5,1573.4,6.25233]
[1744901241937,1.27128,1573.5,1573.2,1.27149]
[1744901241938,5.99,1573.5,1573.2,1.27149]
[1744901242129,5.99,1573.5,1573.4,1.27136]
[1744901242327,5.99,1573.5,1573.3,1.27137]
[1744901242528,1.27136,1573.4,1573.3,1.27137]
[1744901243035,1.27144,1573.3,1572.9,19.10897]
[1744901243238,1.27144,1573.3,1573.2,1.27152]
[1744901243435,1.2714,1573.4,1573.3,1.27143]
[1744901243623,1.2714,1573.4,1573.2,1.27147]
[1744901244033,1.2714,1573.4,1573.0,47.91936]
[1744901244428,9.775,1573.5,1573.0,47.91936]
[1744901244733,1.27136,1573.4,1573.2,1.27146]
[1744901245131,9.775,1573.5,1573.2,1.2715]
[1744901245332,1.27139,1573.4,1573.3,1.27144]
[1744901245533,1.27139,1573.4,1573.0,47.91936]
[1744901245837,1.27139,1573.4,1573.2,1.27145]
[1744901246031,9.775,1573.5,1573.3,1.27141]
[1744901246233,9.775,1573.5,1573.4,1.27136]
[1744901246427,9.775,1573.5,1573.2,3.8588]
[1744901246624,11.04629,1573.5,1573.4,1.27136]
[1744901246933,11.04629,1573.5,1573.3,1.27139]
[1744901247138,1.27136,1573.4,1573.2,5.13025]
[1744901247436,1.27136,1573.4,1573.3,1.27144]
[1744901247633,1.27136,1573.4,1573.2,5.13025]
[1744901247833,1.27137,1573.4,1573.3,1.27143]
[1744901248037,11.04634,1573.5,1573.3,1.27144]
[1744901248432,1.27136,1573.4,1573.3,1.27144]
[1744901248633,9.775,1573.5,1573.3,1.27144]
[1744901248936,1.27136,1573.4,1573.3,1.27144]
[1744901249334,11.04634,1573.5,1573.3,1.27144]
[1744901249536,3.2078,1573.4,1573.3,1.27144]
[1744901249741,3.2078,1573.4,1573.3,5.33774]
[1744901250037,5.99,1573.5,1573.4,1.27136]
[1744901251438,10.46889,1573.8,1573.6,1.27117]
[1744901251738,9.1978,1573.8,1573.6,1.27117]
[1744901252037,1.27111,1573.7,1573.6,1.27117]
[1744901252237,1.27111,1573.7,1573.4,1.27136]
[1744901252433,1.27111,1573.7,1573.6,1.27114]
[1744901252629,3.8185,1573.7,1573.6,1.27114]
[1744901254342,5.08961,1573.7,1573.6,1.27114]
[1744901255042,1.27123,1573.6,1573.5,1.27122]
[1744901255242,5.08969,1573.6,1573.5,1.27122]
[1744901255537,3.8185,1573.6,1573.5,1.27122]
[1744901255842,5.08969,1573.6,1573.5,1.27122]
[1744901256141,8.29749,1573.6,1573.5,1.27122]
[1744901257030,15.89449,1573.6,1573.5,1.27122]
[1744901257235,21.88449,1573.6,1573.5,1.27122]
[1744901257535,1.27132,1573.5,1573.4,1.27131]
[1744901257831,5.10932,1573.5,1573.4,1.27131]
[1744901258228,3.838,1573.5,1573.3,4.0663]
[1744901258433,3.838,1573.4,1573.3,1.27144]
[1744901258638,7.0458,1573.4,1573.0,56.70213]
[1744901258944,4.47939,1573.2,1573.1,1.2716]
[1744901259139,4.47939,1573.2,1573.0,3.9282]
[1744901259140,3.2078,1573.2,1573.0,3.9282]
[1744901259436,13.23925,1573.1,1572.6,8.1838]
[1744901259635,1.27177,1572.9,1572.6,11.36379]
[1744901259839,1.27177,1572.9,1572.8,1.27184]
[1744901260040,5.34187,1572.9,1572.8,1.27184]
[1744901262046,5.34186,1572.9,1572.8,1.27184]
[1744901262941,1.27192,1572.7,1572.6,3.2078]
[1744901263143,4.47972,1572.7,1572.5,5.20027]
[1744901263344,5.2497,1572.6,1572.5,7.6239]
[1744901263839,3.9777,1572.6,1572.3,8.9277]
[1744901264040,3.2078,1572.4,1572.2,3.7424]
[1744901264241,1.27233,1572.2,1572.1,12.02769555]
[1744901264442,4.48013,1572.2,1572.1,8.33199555]
[1744901264839,8.25823,1572.2,1572.1,8.33199555]
[1744901265150,1.27258,1571.9,1571.6,25.55478555]
[1744901265339,1.27258,1571.9,1571.8,5.25829]
[1744901265539,1.27258,1571.9,1571.8,3.9857]
[1744901265735,1.27254,1572.0,1571.9,1.27257]
[1744901266043,1.27257,1571.9,1571.8,5.25829]
[1744901267649,1.27257,1571.9,1571.8,5.25835]
[1744901268152,5.99,1572.1,1571.8,3.9857]
[1744901268354,7.26243,1572.1,1572.0,1.27249]
[1744901268650,1.27243,1572.1,1572.0,1.27249]
[1744901269153,1.27249,1572.0,1571.9,3.8169]
[1744901269450,1.27256,1572.0,1571.8,1.27261]
[1744901269652,1.27249,1572.0,1571.8,1.27261]
[1744901270148,1.27249,1572.0,1571.9,5.08947]
[1744901271250,5.22763,1572.1,1572.0,1.27249]
[1744901271452,5.22763,1572.1,1572.0,5.26839]
[1744901271651,1.27256,1572.0,1571.9,1.27257]
[1744901271843,5.15546,1572.0,1571.9,1.27257]
[1744901272045,13.0535,1572.2,1572.1,1.27241]
[1744901272245,16.9364,1572.2,1572.1,1.27241]
[1744901272555,16.9364,1572.2,1571.8,3.9959]
[1744901272753,5.15538,1572.1,1572.0,1.27249]
[1744901272954,3.8829,1572.1,1572.0,1.27249]
[1744901273250,5.15531,1572.1,1572.0,1.27249]
[1744901273552,3.8829,1572.1,1572.0,1.27249]
[1744901273846,5.15531,1572.1,1571.9,5.2684]
[1744901274056,5.15531,1572.1,1572.0,1.27249]
[1744901274348,3.8829,1572.1,1571.9,3.9959]
[1744901274553,4.0251,1572.0,1571.9,5.26847]
[1744901274853,5.99,1572.2,1572.1,1.27241]
[1744901275052,13.2229,1572.4,1572.3,1.27225]
[1744901275246,10.0151,1572.4,1572.3,1.27225]
[1744901276254,11.28726,1572.4,1572.3,1.27225]
[1744901276453,11.28726,1572.4,1572.2,5.10337]
[1744901276454,10.0151,1572.4,1572.2,5.10337]
[1744901276655,5.29735,1572.3,1572.2,5.10337]
[1744901276954,4.0251,1572.3,1572.2,5.10337]
[1744901277348,7.2329,1572.3,1572.2,5.10337]
[1744901277548,4.0251,1572.3,1572.2,5.10337]
[1744901277757,7.2329,1572.3,1572.2,5.10337]
[1744901278759,8.50515,1572.3,1572.2,5.10337]
[1744901278957,1.27233,1572.2,1572.1,1.27234]
[1744901279158,5.02645,1572.2,1572.1,1.27241]
[1744901279458,1.27241,1572.1,1572.0,12.76123]
[1744901279656,3.7541,1572.1,1572.0,8.95973]
[1744901280556,10.7102,1572.3,1572.2,1.27233]
[1744901280857,1.27233,1572.2,1572.1,3.9391]
[1744901281059,1.27241,1572.1,1572.0,5.10881]
[1744901281259,5.05105,1572.2,1572.0,3.8364]
[1744901281558,3.2078,1572.1,1572.0,9.04799]
[1744901282155,3.7787,1572.2,1572.1,1.27241]
[1744901282355,5.05103,1572.2,1572.1,1.27241]
[1744901283161,1.2726,1571.9,1571.8,1.27262]
[1744901283352,3.2078,1571.9,1571.8,1.27262]
[1744901284159,3.2078,1571.9,1571.8,5.19872]
[1744901284362,4.48037,1571.9,1571.8,5.19872]
[1744901284560,7.1924,1571.9,1571.8,5.19872]
[1744901284853,7.1924,1571.9,1571.6,4.0538]
[1744901284854,1.27273,1571.7,1571.6,4.0538]
[1744901285059,4.48053,1571.7,1571.6,5.32661]
[1744901285262,4.48053,1571.7,1571.6,4.0538]
[1744901285462,1.27281,1571.6,1571.5,3.9261]
[1744901285658,1.27281,1571.6,1571.5,5.18970793]
[1744901285858,5.15661,1571.6,1571.5,5.18970793]
[1744901286162,5.15661,1571.6,1571.5,3.91681793]
[1744901286358,5.15661,1571.6,1571.5,5.18970793]
[1744901287348,9.9736,1571.8,1571.5,3.91681793]
[1744901287554,3.2078,1571.7,1571.5,4.45495]
[1744901287754,3.2078,1571.7,1571.6,1.27281]
[1744901287962,3.19851793,1571.7,1571.6,1.27281]
[1744901288560,4.47124793,1571.7,1571.6,1.27281]
[1744901288762,1.27281,1571.6,1571.5,3.788]
[1744901288960,0.00928207,1571.5,1571.0,3.1832]
[1744901289154,1.27304,1571.4,1571.3,1.27306]
[1744901289350,9.1978,1571.5,1571.4,1.26368793]
[1744901289552,10.0516,1571.6,1571.5,1.27289]
[1744901289754,5.99,1571.6,1571.5,1.27289]
[1744901290353,5.99,1571.6,1571.5,8.97719]